[Event "Begum Laila Alam 12th Women 2022"]
[Site "Dhaka"]
[Date "2022.05.10"]
[Round "6.5"]
[White "Nusrat, Jahan Liza"]
[Black "Israt, Jahan Diba"]
[Result "1/2-1/2"]
[ECO "B52"]
[WhiteElo "1541"]
[BlackElo "1757"]
[Annotator "NA RC COMBH"]
[PlyCount "95"]
[EventDate "2022.05.05"]
[EventType "swiss"]
[EventCountry "BAN"]
[SourceTitle "playchess.com"]
[Source "ChessBase"]
[SourceQuality "1"]
[TimeControl "5400+30"]

1. e4 {[%emt 0:00:03]} c5 {[%emt 0:00:05]} 2. Nf3 {[%emt 0:00:04]} d6 {[%emt 0:00:04]} 3. Bb5+ {[%emt 0:00:04]} Bd7 {[%emt 0:00:06]} 4. Bxd7+ {[%emt 0:00:06]} Nxd7 {[%emt 0:00:38]} 5. O-O {[%emt 0:00:05]} Ngf6 {[%emt 0:00:06]} 6. Re1 {[%emt 0:00:04]} g6 {[%emt 0:00:28]} 7. c3 {[%emt 0:00:05]} Bg7 {[%emt 0:01:11]} 8. d4 {[%emt 0:00:10]} cxd4 {[%emt 0:00:36]} 9. cxd4 {[%emt 0:00:07]} O-O {[%emt 0:00:23]} 10. Nc3 {[%emt 0:00:03]} a6 {[%emt 0:01:05]} 11. Be3 {[%emt 0:02:24]} Nb6 {[%emt 0:05:02]} 12. b3 {[%emt 0:02:17]} Rc8 {[%emt 0:01:33]} 13. Rc1 {[%emt 0:00:06]} Ng4 {[%emt 0:04:15]} 14. Bf4 {[%emt 0:05:08]} e5 {[%emt 0:02:44]} 15. Bg5 {[%emt 0:04:31]} f6 {[%emt 0:02:46]} 16. Bd2 {[%emt 0:02:49]} d5 {[%emt 0:07:52]} 17. h3 {[%emt 0:02:31]} Nh6 {[%emt 0:02:12]} 18. dxe5 {[%emt 0:08:29]} fxe5 {[%emt 0:10:23]} 19. Ng5 {[%emt 0:02:14]} Qd7 {[%emt 0:06:40]} 20. exd5 {[%emt 0:08:32]} Nxd5 {[%emt 0:02:12]} 21. Nxd5 {[%emt 0:04:13]} Qxd5 {[%emt 0:00:59]} 22. Ne4 {[%emt 0:06:18]} Nf5 {[%emt 0:05:13]} 23. Rxc8 {[%emt 0:03:48]} Rxc8 {[%emt 0:00:54]} 24. Qf3 {[%emt 0:00:19]} Qc6 {[%emt 0:03:49]} 25. Rc1 {[%emt 0:03:04]} Qd7 {[%emt 0:00:52]} 26. g4 {[%emt 0:02:59]} Rxc1+ {[%emt 0:02:21]} 27. Bxc1 {[%emt 0:00:09]} Nd4 {[%emt 0:01:40]} 28. Qd3 {[%emt 0:01:46]} Qf7 {[%emt 0:06:39]} 29. Kg2 {[%emt 0:02:07]} Qd5 {[%emt 0:02:19]} 30. Be3 {[%emt 0:05:38]} b5 {[%emt 0:04:13]} 31. f3 {[%emt 0:00:42]} Qc6 {[%emt 0:02:12]} 32. Qc3 {[%emt 0:06:02]} Qb7 {[%emt 0:06:18]} 33. Qc5 {[%emt 0:03:50]} h6 {[%emt 0:06:25]} 34. Qd6 {[%emt 0:00:50]} Kh7 {[%emt 0:00:36]} 35. Bxd4 {[%emt 0:01:10]} exd4 {[%emt 0:00:03]} 36. Nf6+ {[%emt 0:00:09]} Bxf6 {[%emt 0:01:03]} 37. Qxf6 {[%emt 0:00:03]} Qd7 {[%emt 0:00:49]} 38. Kf2 {[%emt 0:00:44]} d3 {[%emt 0:00:59]} 39. Ke1 {[%emt 0:00:08]} Qe8+ {[%emt 0:00:53]} 40. Kd2 {[%emt 0:00:02]} Qe2+ {[%emt 0:00:15]} 41. Kc3 {[%emt 0:00:23]} Qc2+ {[%emt 0:01:52]} 42. Kb4 {[%emt 0:00:24]} Qc7 {[%emt 0:01:49]} 43. Qd4 {[%emt 0:01:30]} Qc2 {[%emt 0:08:22]} 44. Qd7+ {[%emt 0:00:24]} Kg8 {[%emt 0:00:19]} 45. Qe8+ {[%emt 0:00:06]} Kg7 {[%emt 0:00:10]} 46. Qe7+ {[%emt 0:00:03]} Kg8 {[%emt 0:00:16]} 47. Qe8+ {[%emt 0:00:02]} Kg7 {[%emt 0:00:13]} 48. Qe7+ {[%emt 0:27:45]} 1/2-1/2

[Event "Begum Laila Alam 12th Women 2022"]
[Site "Dhaka"]
[Date "2022.05.10"]
[Round "6.6"]
[White "Omnia Binta Yusuf, Lubaba"]
[Black "Tabassum Sadia, Shahjahan"]
[Result "1-0"]
[ECO "C47"]
[WhiteElo "1652"]
[BlackElo "1269"]
[Annotator "NA RC COMBH"]
[PlyCount "49"]
[EventDate "2022.05.05"]
[EventType "swiss"]
[EventCountry "BAN"]
[SourceTitle "playchess.com"]
[Source "ChessBase"]
[SourceQuality "1"]
[TimeControl "5400+30"]

1. e4 {[%emt 0:00:12]} e5 {[%emt 0:00:23]} 2. Nf3 {[%emt 0:00:12]} Nc6 {[%emt 0:00:28]} 3. d4 {[%emt 0:00:10]} exd4 {[%emt 0:00:12]} 4. Nxd4 {[%emt 0:00:05]} Nf6 {[%emt 0:00:14]} 5. Nc3 {[%emt 0:00:04]} Bb4 {[%emt 0:00:36]} 6. Nxc6 {[%emt 0:00:10]} bxc6 {[%emt 0:01:24]} 7. Bd3 {[%emt 0:00:06]} O-O {[%emt 0:00:31]} 8. O-O {[%emt 0:00:36]} d5 {[%emt 0:01:45]} 9. exd5 {[%emt 0:00:06]} cxd5 {[%emt 0:00:27]} 10. Qf3 {[%emt 0:01:34]} c6 {[%emt 0:01:35]} 11. Bg5 {[%emt 0:00:32]} Be7 {[%emt 0:03:01]} 12. Rfe1 {[%emt 0:01:14]} Rb8 {[%emt 0:03:36]} 13. Rab1 {[%emt 0:03:48]} Be6 {[%emt 0:03:06]} 14. Ne2 {[%emt 0:03:40]} h6 {[%emt 0:03:58]} 15. Bf4 {[%emt 0:03:40]} Bd6 {[%emt 0:02:14]} 16. Nd4 {[%emt 0:04:18]} Qd7 {[%emt 0:03:21]} 17. Bxh6 {[%emt 0:11:30]} gxh6 {[%emt 0:15:24]} 18. Qxf6 {[%emt 0:01:00]} Rfe8 {[%emt 0:19:10]} 19. Qxh6 {[%emt 0:02:22]} c5 {[%emt 0:05:45]} 20. Bh7+ {[%emt 0:02:27]} Kh8 {[%emt 0:01:07]} 21. Bf5+ {[%emt 0:00:39]} Kg8 {[%emt 0:00:27]} 22. Qh7+ {[%emt 0:00:36]} Kf8 {[%emt 0:00:24]} 23. Nxe6+ {[%emt 0:00:41]} Rxe6 {[%emt 0:03:33]} 24. Rxe6 {[%emt 0:00:14]} Bxh2+ {[%emt 0:04:28]} 25. Kxh2 {[%emt 1:03:04]} 1-0

[Event "Begum Laila Alam 12th Women 2022"]
[Site "Dhaka"]
[Date "2022.05.11"]
[Round "7.1"]
[White "Noshin, Anjum"]
[Black "Hamid, Rani"]
[Result "1-0"]
[ECO "B43"]
[WhiteElo "2065"]
[BlackElo "1783"]
[Annotator "TA"]
[PlyCount "42"]
[EventDate "2022.05.05"]
[EventType "swiss"]
[EventCountry "BAN"]
[SourceTitle "playchess.com"]
[Source "ChessBase"]
[SourceQuality "1"]
[TimeControl "5400+30"]

{[%evp 14,42,19,15,18,14,12,0,0,-8,0,-4,26,-10,-8,-81,-13,-37,-25,0,972,978,1229,1242,1219,1199,1168,1121,29982,29983,29999]} 1. e4 {[%emt 0:05:57]} c5 {[%emt 0:00:01]} 2. Nf3 {[%emt 0:00:06]} e6 {[%emt 0:00:07]} 3. d4 {[%emt 0:00:09]} cxd4 {[%emt 0:00:02]} 4. Nxd4 {[%emt 0:00:07]} a6 {[%emt 0:00:04]} 5. Nc3 {[%emt 0:00:06]} Qc7 {[%emt 0:00:07]} 6. Bd3 {[%emt 0:00:06]} Nf6 {[%emt 0:00:10]} 7. O-O {[%emt 0:00:08]} Be7 {[%emt 0:00:11] 7...Bc5 is setting a new trend.} 8. Kh1 {[%emt 0:00:23]} Nc6 {[%emt 0:00:27] B43: Sicilian: Kan Variation: 5 Nc3.} 9. Nxc6 {[%emt 0:01:02]} bxc6 {[%emt 0:00:06]} 10. f4 {[%emt 0:01:21]} d5 {[%emt 0:01:33] The position is equal.} 11. e5 {[%emt 0:17:52]} Nd7 {[%emt 0:00:07]} 12. b3 {[%emt 0:05:01] [#]} f5 $146 {[%emt 0:07:35]} ({Predecessor:} 12... g6 13. Bb2 Bb7 14. Qe2 Nc5 15. Nd1 h5 16. Nf2 a5 17. Rfc1 a4 18. Bd4 Nxd3 19. Nxd3 {½-½ (31) Vedder,R (2216)-Wegerle,J (2421) Vlissingen 2005}) 13. Na4 {[%emt 0:10:28]} (13. exf6 $5 Bxf6 14. Bb2 $11) 13... O-O {[%emt 0:05:17]} 14. g4 {[%emt 0:04:14]} (14. Bd2 $11 {remains equal.}) 14... g6 {[%emt 0:03:27]} (14... c5 $17 {White should prevent ...Bb7.} 15. gxf5 Bb7) 15. gxf5 {[%emt 0:02:36]} gxf5 {[%emt 0:02:00]} 16. Qh5 {[%emt 0:03:28]} Rf7 $2 {[%emt 0:01:00][%mdl 8192] [#]} (16... Bb7 $11) 17. Rg1+ $18 {[%emt 0:04:37]} Rg7 {[%emt 0:00:34]} 18. Rxg7+ {[%emt 0:03:35]} Kxg7 {[%emt 1:16:42]} 19. Bb2 {[%emt 0:38:44]} Nf8 {[%emt 0:00:00] [#]} 20. Bxf5 $1 {[%emt 0:00:00][%mdl 512] Threatening mate with Rg1+.} exf5 {[%emt 0:00:00]} (20... Bb4 21. Rg1+) 21. e6+ $1 {[%emt 0:00:00]} Kg8 {[%emt 0:01:30] Weighted Error Value: White=0.20 (precise) /Black=1.18} 1-0

[Event "Begum Laila Alam 12th Women 2022"]
[Site "Dhaka"]
[Date "2022.05.11"]
[Round "7.2"]
[White "Nusrat Jahan, Alo"]
[Black "Sultana, Sharmin Shirin"]
[Result "1/2-1/2"]
[ECO "B48"]
[WhiteElo "1652"]
[BlackElo "1992"]
[Annotator "TA"]
[PlyCount "36"]
[EventDate "2022.05.05"]
[EventType "swiss"]
[EventCountry "BAN"]
[SourceTitle "playchess.com"]
[Source "ChessBase"]
[SourceQuality "1"]
[TimeControl "5400+30"]

{[%evp 21,36,15,16,0,0,-13,-13,-32,-23,-20,-17,-21,-18,-21,-18,-33,-21]} 1. e4 {[%emt 0:00:03]} c5 {[%emt 0:00:26]} 2. Nf3 {[%emt 0:00:06]} e6 {[%emt 0:00:28]} 3. d4 {[%emt 0:00:08]} cxd4 {[%emt 0:00:13]} 4. Nxd4 {[%emt 0:00:29]} a6 {[%emt 0:00:22]} 5. Nc3 {[%emt 0:00:41]} Qc7 {[%emt 0:00:17]} 6. Bd3 {[%emt 0:00:54]} Nf6 {[%emt 0:01:30]} 7. O-O {[%emt 0:01:22]} b5 {[%emt 0:00:08]} 8. a3 {[%emt 0:00:30]} Bb7 {[%emt 0:00:22]} 9. Re1 {[%emt 0:01:34]} Nc6 {[%emt 0:00:37]} 10. Nxc6 {[%emt 0:00:50]} Qxc6 {[%emt 0:00:26]} 11. Be3 {[%emt 0:02:14]} Be7 {[%emt 0:03:15]} 12. f3 {[%emt 0:03:11] B48: Sicilian: Taimanov: 5 Nc3 Qc7 6 Be3 a6 without Be2.} Qc7 {[%emt 0:03:56] [#]} 13. f4 $146 {[%emt 0:07:33]} ({Predecessor:} 13. Qd2 O-O 14. Qf2 Rac8 15. Rad1 d6 16. Kh1 Rfe8 17. Qg3 Nh5 18. Qh3 g6 19. Ne2 Bf6 {0-1 (41) Tseshkovsky,V (2545)-Ivanchuk,V (2709) Warsaw 2002}) 13... d6 {[%emt 0:00:47]} 14. Kh1 {[%emt 0:00:47] The position is equal.} O-O {[%emt 0:04:50]} 15. Qf3 {[%emt 0:03:52]} Nd7 {[%emt 0:09:25][%cal Bf6d7,Bd7c5,Bc5d3][%mdl 32]} 16. Qh3 {[%emt 0:04:42]} Nc5 {[%emt 0:15:03]} 17. Bd4 {[%emt 0:07:33]} Nxd3 {[%emt 0:06:04]} 18. Qxd3 {[%emt 0:03:27]} Qc4 {[%emt 0:02:53] An interesting draw.  Weighted Error Value: White=0.09 (flawless) /Black=0.01 (flawless)} 1/2-1/2

[Event "Begum Laila Alam 12th Women 2022"]
[Site "Dhaka"]
[Date "2022.05.11"]
[Round "7.3"]
[White "Israt, Jahan Diba"]
[Black "Omnia Binta Yusuf, Lubaba"]
[Result "1-0"]
[ECO "B15"]
[WhiteElo "1757"]
[BlackElo "1652"]
[Annotator "NA RC COMBH"]
[PlyCount "83"]
[EventDate "2022.05.05"]
[EventType "swiss"]
[EventCountry "BAN"]
[SourceTitle "playchess.com"]
[Source "ChessBase"]
[SourceQuality "1"]
[TimeControl "5400+30"]

1. e4 {[%emt 0:00:02]} c6 {[%emt 0:00:12]} 2. d4 {[%emt 0:00:08]} d5 {[%emt 0:00:06]} 3. Nc3 {[%emt 0:00:13]} dxe4 {[%emt 0:00:08]} 4. Nxe4 {[%emt 0:00:10]} Nf6 {[%emt 0:00:21]} 5. Nxf6+ {[%emt 0:00:07]} exf6 {[%emt 0:00:05]} 6. Bf4 {[%emt 0:00:48]} Bf5 {[%emt 0:00:53]} 7. c3 {[%emt 0:01:03]} Be7 {[%emt 0:01:14]} 8. Bd3 {[%emt 0:01:12]} Bg6 {[%emt 0:00:51]} 9. Ne2 {[%emt 0:01:26]} Nd7 {[%emt 0:02:41]} 10. Ng3 {[%emt 0:04:29]} O-O {[%emt 0:01:40]} 11. O-O {[%emt 0:00:35]} Re8 {[%emt 0:00:54]} 12. Nf5 {[%emt 0:01:39]} Nf8 {[%emt 0:02:14]} 13. h4 {[%emt 0:02:53]} Ne6 {[%emt 0:02:50]} 14. Be3 {[%emt 0:02:43]} c5 {[%emt 0:07:08]} 15. Nxe7+ {[%emt 0:03:47]} Qxe7 {[%emt 0:06:50]} 16. d5 {[%emt 0:04:25]} Bxd3 {[%emt 0:06:06]} 17. Qxd3 {[%emt 0:00:57]} Nf8 {[%emt 0:07:48]} 18. d6 {[%emt 0:01:02]} Qe5 {[%emt 0:02:45]} 19. Rad1 {[%emt 0:02:55]} b6 {[%emt 0:03:59]} 20. Qd5 {[%emt 0:05:16]} Qxd5 {[%emt 0:00:57]} 21. Rxd5 {[%emt 0:00:04]} Nd7 {[%emt 0:00:58]} 22. Rc1 {[%emt 0:02:59]} Re5 {[%emt 0:03:28]} 23. Rxe5 {[%emt 0:04:21]} fxe5 {[%emt 0:00:51]} 24. f4 {[%emt 0:03:29]} f6 {[%emt 0:01:36]} 25. b4 {[%emt 0:04:17]} c4 {[%emt 0:00:32]} 26. Kf2 {[%emt 0:03:54]} Kf7 {[%emt 0:01:33]} 27. f5 {[%emt 0:01:45]} a5 {[%emt 0:03:04]} 28. b5 {[%emt 0:03:19]} Rc8 {[%emt 0:02:21]} 29. Rd1 {[%emt 0:02:11]} g6 {[%emt 0:01:25]} 30. g4 {[%emt 0:01:14]} gxf5 {[%emt 0:00:26]} 31. gxf5 {[%emt 0:00:10]} e4 {[%emt 0:10:30]} 32. Bd4 {[%emt 0:09:04]} Re8 {[%emt 0:06:45]} 33. a4 {[%emt 0:04:08]} e3+ {[%emt 0:03:03]} 34. Bxe3 {[%emt 0:02:58]} Rxe3 {[%emt 0:01:46]} 35. Kxe3 {[%emt 0:00:19]} Ke8 {[%emt 0:00:09]} 36. Kd4 {[%emt 0:04:33]} Nc5 {[%emt 0:00:57]} 37. Re1+ {[%emt 0:01:07]} Kd7 {[%emt 0:00:36]} 38. Kd5 {[%emt 0:00:18]} Nxa4 {[%emt 0:00:31]} 39. Re7+ {[%emt 0:00:11]} Kd8 {[%emt 0:00:13]} 40. Kc6 {[%emt 0:01:17]} Nc5 {[%emt 0:01:27]} 41. Rxh7 {[%emt 0:00:27]} Ke8 {[%emt 0:00:24]} 42. d7+ {[%emt 0:00:16]} 1-0

[Event "Begum Laila Alam 12th Women 2022"]
[Site "Dhaka"]
[Date "2022.05.11"]
[Round "7.4"]
[White "Wadifa, Ahmed"]
[Black "Essaba, Masnun"]
[Result "1-0"]
[ECO "B13"]
[WhiteElo "1791"]
[BlackElo "1316"]
[Annotator "NA RC COMBH"]
[PlyCount "103"]
[EventDate "2022.05.05"]
[EventType "swiss"]
[EventCountry "BAN"]
[SourceTitle "playchess.com"]
[Source "ChessBase"]
[SourceQuality "1"]
[TimeControl "5400+30"]

1. e4 {[%emt 0:00:02]} c6 {[%emt 0:05:33]} 2. d4 {[%emt 0:00:14]} d5 {[%emt 0:00:07]} 3. exd5 {[%emt 0:00:06]} cxd5 {[%emt 0:00:11]} 4. Bd3 {[%emt 0:00:09]} Nf6 {[%emt 0:01:03]} 5. Ne2 {[%emt 0:01:18]} Nc6 {[%emt 0:06:12]} 6. c3 {[%emt 0:00:07]} e5 {[%emt 0:00:26]} 7. dxe5 {[%emt 0:03:03]} Nxe5 {[%emt 0:00:55]} 8. Bc2 {[%emt 0:00:22]} Be7 {[%emt 0:03:09]} 9. O-O {[%emt 0:03:51]} O-O {[%emt 0:04:03]} 10. Bf4 {[%emt 0:04:00]} Nc4 {[%emt 0:05:09]} 11. b3 {[%emt 0:01:12]} Nd6 {[%emt 0:02:25]} 12. Nd2 {[%emt 0:03:41]} Be6 {[%emt 0:02:02]} 13. Nf3 {[%emt 0:04:35]} Nde4 {[%emt 0:06:34]} 14. Nfd4 {[%emt 0:01:34]} Bd7 {[%emt 0:06:11]} 15. f3 {[%emt 0:01:46]} Nc5 {[%emt 0:01:39]} 16. Bg3 {[%emt 0:01:32]} Nh5 {[%emt 0:02:45]} 17. b4 {[%emt 0:09:04]} Nxg3 {[%emt 0:00:56]} 18. hxg3 {[%emt 0:07:15]} Ne6 {[%emt 0:00:45]} 19. Nf5 {[%emt 0:01:01]} Bc6 {[%emt 0:05:19]} 20. Qd3 {[%emt 0:01:07]} g6 {[%emt 0:02:28]} 21. Nxe7+ {[%emt 0:03:38]} Qxe7 {[%emt 0:00:24]} 22. Rad1 {[%emt 0:03:58]} Rad8 {[%emt 0:00:22]} 23. Bb3 {[%emt 0:01:03]} a6 {[%emt 0:00:59]} 24. Rfe1 {[%emt 0:02:34]} Qc7 {[%emt 0:00:40]} 25. g4 {[%emt 0:02:57]} Nf4 {[%emt 0:03:54]} 26. Nxf4 {[%emt 0:02:18]} Qxf4 {[%emt 0:00:08]} 27. a4 {[%emt 0:01:34]} b5 {[%emt 0:02:03]} 28. Qc2 {[%emt 0:09:09]} Qf6 {[%emt 0:03:22]} 29. axb5 {[%emt 0:00:27]} axb5 {[%emt 0:00:10]} 30. Rd4 {[%emt 0:00:26]} Bb7 {[%emt 0:01:33]} 31. Red1 {[%emt 0:01:30]} Qb6 {[%emt 0:03:44]} 32. Kf1 {[%emt 0:01:36]} h5 {[%emt 0:02:32]} 33. gxh5 {[%emt 0:01:01]} gxh5 {[%emt 0:00:34]} 34. Bxd5 {[%emt 0:01:30]} Bxd5 {[%emt 0:01:21]} 35. Rxd5 {[%emt 0:00:02]} Rxd5 {[%emt 0:00:31]} 36. Rxd5 {[%emt 0:00:02]} Ra8 {[%emt 0:04:08]} 37. Qc1 {[%emt 0:08:05]} Ra2 {[%emt 0:03:25]} 38. Qg5+ {[%emt 0:00:22]} Qg6 {[%emt 0:02:56]} 39. Qxg6+ {[%emt 0:00:08]} fxg6 {[%emt 0:00:09]} 40. Rxb5 {[%emt 0:00:09]} h4 {[%emt 0:01:00]} 41. Rc5 {[%emt 0:00:39]} Ra1+ {[%emt 0:00:36]} 42. Kf2 {[%emt 0:00:08]} Ra2+ {[%emt 0:00:13]} 43. Kg1 {[%emt 0:00:08]} Rb2 {[%emt 0:01:33]} 44. b5 {[%emt 0:00:42]} Kf7 {[%emt 0:00:32]} 45. c4 {[%emt 0:00:17]} Ke6 {[%emt 0:00:32]} 46. Kh2 {[%emt 0:01:42]} Kf6 {[%emt 0:00:58]} 47. Kh3 {[%emt 0:00:57]} g5 {[%emt 0:00:26]} 48. g3 {[%emt 0:01:25]} Rb3 {[%emt 0:01:17]} 49. gxh4 {[%emt 0:00:28]} Rxf3+ {[%emt 0:00:19]} 50. Kg2 {[%emt 0:00:06]} g4 {[%emt 0:00:43]} 51. b6 {[%emt 0:00:03]} Rb3 {[%emt 0:01:03]} 52. Rb5 {[%emt 0:00:06]} 1-0

[Event "Begum Laila Alam 12th Women 2022"]
[Site "Dhaka"]
[Date "2022.05.11"]
[Round "7.5"]
[White "Sultana, Zakia"]
[Black "Nusrat, Jahan Liza"]
[Result "1-0"]
[ECO "D02"]
[WhiteElo "1777"]
[BlackElo "1541"]
[Annotator "NA RC COMBH"]
[PlyCount "231"]
[EventDate "2022.05.05"]
[EventType "swiss"]
[EventCountry "BAN"]
[SourceTitle "playchess.com"]
[Source "ChessBase"]
[SourceQuality "1"]
[TimeControl "5400+30"]

1. d4 {[%emt 0:00:08]} Nc6 {[%emt 0:00:04]} 2. Nf3 {[%emt 0:00:29]} d5 {[%emt 0:00:06]} 3. Bf4 {[%emt 0:00:27]} Bg4 {[%emt 0:00:16]} 4. Nbd2 {[%emt 0:00:18]} e6 {[%emt 0:00:24]} 5. c3 {[%emt 0:00:13]} Bd6 {[%emt 0:00:18]} 6. Bg3 {[%emt 0:00:14]} Bxg3 {[%emt 0:03:10]} 7. hxg3 {[%emt 0:00:18]} Qe7 {[%emt 0:00:36]} 8. Qa4 {[%emt 0:00:40]} f6 {[%emt 0:04:09]} 9. e3 {[%emt 0:01:50]} a6 {[%emt 0:00:06]} 10. Bd3 {[%emt 0:00:52]} Bf5 {[%emt 0:02:46]} 11. Bxf5 {[%emt 0:01:05]} exf5 {[%emt 0:00:02]} 12. Qb3 {[%emt 0:01:31]} O-O-O {[%emt 0:00:09]} 13. O-O-O {[%emt 0:02:35]} Nh6 {[%emt 0:00:22]} 14. Qc2 {[%emt 0:00:44]} Kb8 {[%emt 0:00:45]} 15. Nb3 {[%emt 0:01:40]} Ng4 {[%emt 0:00:31]} 16. Nc5 {[%emt 0:01:50]} Ka7 {[%emt 0:01:41]} 17. Rdf1 {[%emt 0:03:34]} b6 {[%emt 0:00:17]} 18. Nb3 {[%emt 0:03:46]} Qe4 {[%emt 0:01:06]} 19. Qe2 {[%emt 0:01:36]} Nh6 {[%emt 0:07:16]} 20. Nbd2 {[%emt 0:01:26]} Qe6 {[%emt 0:00:55]} 21. Kb1 {[%emt 0:01:28]} Nf7 {[%emt 0:00:34]} 22. Rh2 {[%emt 0:04:24]} Nd6 {[%emt 0:00:23]} 23. Rfh1 {[%emt 0:00:14]} h6 {[%emt 0:01:21]} 24. Ka1 {[%emt 0:01:30]} Na5 {[%emt 0:00:19]} 25. b3 {[%emt 0:00:53]} Ne4 {[%emt 0:00:07]} 26. Rc1 {[%emt 0:00:24]} Qc6 {[%emt 0:00:57]} 27. Nxe4 {[%emt 0:03:43]} fxe4 {[%emt 0:00:09]} 28. Nd2 {[%emt 0:00:45]} Qd6 {[%emt 0:00:22]} 29. Kb2 {[%emt 0:00:26]} Rb8 {[%emt 0:00:46]} 30. b4 {[%emt 0:00:45]} Nb7 {[%emt 0:00:39]} 31. a3 {[%emt 0:00:23]} c5 {[%emt 0:05:16]} 32. Rhh1 {[%emt 0:01:49]} Qd7 {[%emt 0:00:53]} 33. Ka2 {[%emt 0:05:51]} Qa4 {[%emt 0:00:15]} 34. Qd1 {[%emt 0:00:16]} Qxd1 {[%emt 0:01:30]} 35. Rhxd1 {[%emt 0:00:18]} c4 {[%emt 0:00:14]} 36. Rh1 {[%emt 0:00:49]} Nd6 {[%emt 0:00:35]} 37. Rh5 {[%emt 0:00:50]} f5 {[%emt 0:00:28]} 38. Rch1 {[%emt 0:00:22]} Rbf8 {[%emt 0:00:16]} 39. Kb2 {[%emt 0:00:57]} Kb7 {[%emt 0:00:21]} 40. a4 {[%emt 0:00:46]} Rf6 {[%emt 0:00:29]} 41. Kc2 {[%emt 0:00:42]} Kc7 {[%emt 0:00:02]} 42. Kd1 {[%emt 0:01:01]} Ra8 {[%emt 0:00:45]} 43. Ke2 {[%emt 0:00:20]} Kd7 {[%emt 0:00:48]} 44. Rf1 {[%emt 0:04:15]} a5 {[%emt 0:00:24]} 45. b5 {[%emt 0:00:07]} Raf8 {[%emt 0:00:18]} 46. g4 {[%emt 0:03:37]} Rg6 {[%emt 0:00:51]} 47. gxf5 {[%emt 0:02:56]} Rxf5 {[%emt 0:00:27]} 48. Rxf5 {[%emt 0:00:40]} Nxf5 {[%emt 0:00:02]} 49. g3 {[%emt 0:00:25]} Ke6 {[%emt 0:00:27]} 50. Rh1 {[%emt 0:01:18]} Rg5 {[%emt 0:02:49]} 51. Rh3 {[%emt 0:02:22]} Nd6 {[%emt 0:07:44]} 52. Rh4 {[%emt 0:01:22]} Ne8 {[%emt 0:01:05]} 53. Nf1 {[%emt 0:00:22]} Nf6 {[%emt 0:00:02]} 54. Nh2 {[%emt 0:01:03]} Kf5 {[%emt 0:03:36]} 55. Kf1 {[%emt 0:03:32]} Ng4 {[%emt 0:01:19]} 56. Nxg4 {[%emt 0:00:26]} Rxg4 {[%emt 0:00:02]} 57. Rh5+ {[%emt 0:00:15]} Ke6 {[%emt 0:00:09]} 58. Re5+ {[%emt 0:00:37]} Kd6 {[%emt 0:00:46]} 59. Kg2 {[%emt 0:00:19]} Rg5 {[%emt 0:00:33]} 60. Re8 {[%emt 0:01:31]} Kc7 {[%emt 0:03:03]} 61. Rf8 {[%emt 0:00:24]} Rg6 {[%emt 0:00:28]} 62. Rf7+ {[%emt 0:00:34]} Kc8 {[%emt 0:02:36]} 63. Kh3 {[%emt 0:01:08]} Kd8 {[%emt 0:00:01]} 64. Rf5 {[%emt 0:00:50]} Rd6 {[%emt 0:02:39]} 65. Rf7 {[%emt 0:00:35]} g6 {[%emt 0:01:25]} 66. Rh7 {[%emt 0:01:34]} h5 {[%emt 0:00:52]} 67. Rf7 {[%emt 0:00:37]} Ke8 {[%emt 0:00:14]} 68. Rb7 {[%emt 0:00:41]} Rf6 {[%emt 0:00:59]} 69. Kg2 {[%emt 0:00:36]} Kd8 {[%emt 0:00:38]} 70. Kg1 {[%emt 0:01:50]} Kc8 {[%emt 0:00:52]} 71. Re7 {[%emt 0:00:15]} Kd8 {[%emt 0:00:10]} 72. Re5 {[%emt 0:00:18]} Rd6 {[%emt 0:00:29]} 73. Kg2 {[%emt 0:00:09]} Kd7 {[%emt 0:00:04]} 74. Kh3 {[%emt 0:00:55]} Kd8 {[%emt 0:11:36]} 75. g4 {[%emt 0:00:32]} hxg4+ {[%emt 0:00:34]} 76. Kxg4 {[%emt 0:00:02]} Kd7 {[%emt 0:01:55]} 77. f3 {[%emt 0:00:30]} exf3 {[%emt 0:00:15]} 78. Kxf3 {[%emt 0:00:02]} Rf6+ {[%emt 0:00:01]} 79. Kg2 {[%emt 0:00:38]} Kd6 {[%emt 0:00:04]} 80. e4 {[%emt 0:01:30]} dxe4 {[%emt 0:00:32]} 81. Rxe4 {[%emt 0:00:01]} Kd7 {[%emt 0:05:52]} 82. Re3 {[%emt 0:02:22]} Kd6 {[%emt 0:03:31]} 83. Re8 {[%emt 0:01:05]} Kd7 {[%emt 0:00:38]} 84. Rb8 {[%emt 0:02:01]} Kc7 {[%emt 0:01:32]} 85. Rg8 {[%emt 0:00:09]} Re6 {[%emt 0:00:16]} 86. Kf2 {[%emt 0:00:05]} Kb7 {[%emt 0:02:45]} 87. Rg7+ {[%emt 0:01:17]} Kc8 {[%emt 0:00:13]} 88. Rf7 {[%emt 0:00:42]} Kd8 {[%emt 0:00:06]} 89. Rg7 {[%emt 0:00:55]} Kc8 {[%emt 0:00:16]} 90. Rf7 {[%emt 0:00:25]} Kd8 {[%emt 0:00:09]} 91. Rf3 {[%emt 0:00:12]} Kd7 {[%emt 0:00:06]} 92. Re3 {[%emt 0:00:41]} Rf6+ {[%emt 0:00:44]} 93. Rf3 {[%emt 0:00:12]} Re6 {[%emt 0:00:02]} 94. Rf7+ {[%emt 0:00:44]} Kd6 {[%emt 0:00:39]} 95. Rb7 {[%emt 0:00:42]} Kd5 {[%emt 0:00:01]} 96. Rc7 {[%emt 0:00:18]} Rf6+ {[%emt 0:02:29]} 97. Ke2 {[%emt 0:00:19]} Re6+ {[%emt 0:00:01]} 98. Kd2 {[%emt 0:00:46]} Rf6 {[%emt 0:00:07]} 99. Ke2 {[%emt 0:00:33]} Re6+ {[%emt 0:00:02]} 100. Kd1 {[%emt 0:02:35]} Rf6 {[%emt 0:03:35]} 101. Re7 {[%emt 0:02:34]} Rf3 {[%emt 0:03:05]} 102. Kd2 {[%emt 0:00:17]} Rf6 {[%emt 0:03:14]} 103. Re5+ {[%emt 0:00:45]} Kd6 {[%emt 0:00:06]} 104. Ke2 {[%emt 0:00:45]} Kd7 {[%emt 0:03:42]} 105. Rg5 {[%emt 0:01:12]} Kd6 {[%emt 0:00:37]} 106. Ke3 {[%emt 0:01:47]} Re6+ {[%emt 0:00:14]} 107. Kd2 {[%emt 0:00:29]} Rf6 {[%emt 0:00:13]} 108. Ke2 {[%emt 0:00:52]} Re6+ {[%emt 0:00:05]} 109. Kf2 {[%emt 0:00:15]} Kd7 {[%emt 0:00:26]} 110. Rd5+ {[%emt 0:00:36]} Kc7 {[%emt 0:00:11]} 111. Rg5 {[%emt 0:00:15]} Kd7 {[%emt 0:00:22]} 112. Rg3 {[%emt 0:00:54]} Kd6 {[%emt 0:00:11]} 113. Re3 {[%emt 0:00:14]} Rf6+ {[%emt 0:00:01]} 114. Kg2 {[%emt 0:00:29]} Kd5 {[%emt 0:02:19]} 115. Re8 {[%emt 0:00:24]} Rd6 {[%emt 0:00:49]} 116. Re5# {[%emt 0:00:29]} 1-0